bitfinex-derivatives/quotes_ETHF0:USTF0_20250804
["timestamp","ask_amount","ask_price","bid_price","bid_amount"]
[1754297265727,0.14668295,3554.7,3554.6,0.56259]
[1754297266326,19.46,3554.7,3554.6,0.56259]
[1754297266527,19.60668295,3554.7,3554.6,0.56259]
[1754297266728,19.46,3554.7,3554.6,0.56259]
[1754297267837,40.514,3554.9,3554.8,0.56257]
[1754297268133,3.2078,3555.4,3554.8,4.61423]
[1754297268334,20.3654467,3555.3,3555.2,0.56251]
[1754297268534,3.2078,3555.8,3555.6,0.56243]
[1754297268727,20.3655364,3555.7,3555.6,0.56243]
[1754297269133,19.60461558,3555.7,3555.6,3.77023]
[1754297269936,0.14661558,3555.7,3555.6,3.77023]
[1754297270135,19.456,3555.7,3555.6,3.77023]
[1754297270332,19.60261558,3555.7,3555.6,3.77023]
[1754297270531,19.456,3555.7,3555.6,3.77023]
[1754297271036,5.0,3556.0,3555.9,0.5624]
[1754297271232,5.0,3556.0,3555.8,0.56241]
[1754297274133,5.0,3556.0,3555.6,3.2078]
[1754297275035,0.56241,3555.9,3555.6,3.77023]
[1754297275241,20.01342,3555.8,3555.6,3.2078]
[1754297275440,19.451,3555.8,3555.6,3.2078]
[1754297275635,19.451,3555.8,3555.6,3.77023]
[1754297276143,20.01342,3555.8,3555.6,3.2078]
[1754297277140,20.01342,3555.8,3555.6,3.77024]
[1754297278043,20.01342,3555.8,3555.6,3.2078]
[1754297279945,0.56249,3555.4,3555.2,0.5625]
[1754297280145,19.447,3555.3,3555.2,0.5625]
[1754297280743,19.447,3555.3,3555.0,3.2078]
[1754297280946,19.447,3555.3,3555.0,3.77033]
[1754297280947,0.56252,3555.2,3555.0,3.77033]
[1754297282148,3.2078,3555.7,3555.1,1.40632]
[1754297282348,19.447,3555.6,3555.5,0.56245]
[1754297282550,19.447,3555.6,3555.1,1.40632]
[1754297282551,19.447,3555.6,3555.2,1.40628]
[1754297282845,19.447,3555.5,3555.4,0.56248]
[1754297283249,19.447,3555.5,3555.4,3.77028]
[1754297283847,19.447,3555.5,3555.4,3.2078]
[1754297284143,0.56248,3555.4,3555.3,0.56248]
[1754297284337,6.40596,3556.0,3555.6,0.56244]
[1754297284548,19.446,3555.9,3555.6,0.56244]
[1754297284945,0.56241,3555.8,3555.7,0.56242]
[1754297285247,19.446,3555.8,3555.4,3.2078]
[1754297285451,0.56245,3555.6,3555.5,0.56245]
[1754297286044,0.56244,3555.7,3555.6,0.56243]
[1754297286350,20.00842,3555.8,3555.6,0.56243]
[1754297287441,0.56246,3555.6,3555.4,3.2078]
[1754297287643,19.445,3555.5,3555.4,3.2078]
[1754297294952,19.444,3555.5,3555.4,3.2078]
[1754297297657,0.56248,3555.4,3555.2,0.5625]
[1754297297958,0.56252,3555.2,3555.1,0.56251]
[1754297298158,19.443,3555.2,3555.1,0.56251]
[1754297301465,0.56252,3555.1,3555.0,3.77033]
[1754297302159,0.56252,3555.1,3555.0,3.2078]
[1754297302561,0.56257,3554.8,3554.7,0.56258]
[1754297302758,20.00457,3554.8,3554.6,3.2078]
[1754297303355,0.56268,3554.2,3554.1,3.77048]
[1754297303659,19.442,3554.2,3554.1,3.77048]
[1754297305456,19.441,3554.2,3554.1,3.2078]
[1754297305659,19.441,3554.2,3554.1,3.77048]
[1754297306563,19.441,3554.2,3554.1,3.2078]
[1754297319974,19.441,3554.2,3554.1,4.61449]
[1754297320179,19.441,3554.2,3554.1,3.77048]
[1754297320379,3.2078,3554.6,3554.5,0.56262]
[1754297320574,22.6478,3554.6,3554.5,0.56262]
[1754297324584,0.56262,3554.5,3554.4,0.56262]
[1754297324783,0.56267,3554.3,3554.2,0.56267]
[1754297324984,20.00267,3554.3,3554.2,0.56267]
[1754297328579,19.44,3554.3,3554.2,0.56267]
[1754297330681,40.505,3554.8,3554.7,0.56259]
[1754297330978,40.505,3554.8,3554.7,3.77039]
[1754297331184,59.941,3554.8,3554.7,3.77039]
[1754297333285,19.436,3554.8,3554.7,3.77039]
[1754297334782,3.2078,3555.4,3555.3,0.56249]
[1754297335085,20.19339872,3555.4,3555.3,0.56249]
[1754297335488,19.433,3555.4,3555.3,0.56249]
[1754297337684,40.51,3555.8,3555.7,0.56243]
[1754297337980,5.0,3556.0,3555.9,0.5624]
[1754297338186,24.431,3556.0,3555.9,0.5624]
[1754297339694,0.5624,3555.9,3555.7,3.77022]
[1754297339893,0.5624,3555.9,3555.7,3.2078]
[1754297340897,19.428,3555.8,3555.7,3.2078]
[1754297344894,0.56249,3555.3,3555.2,1.80172181]
[1754297345195,0.56257,3554.9,3554.8,0.56257]
[1754297345388,19.98657,3554.9,3554.8,0.56257]
[1754297346490,19.98657,3554.9,3554.7,3.2078]
[1754297346692,19.98657,3554.9,3553.9,1.40677]
[1754297346693,0.56262,3554.5,3554.4,0.56263]
[1754297346898,0.56265,3554.3,3554.2,3.77046]
[1754297347701,0.56264,3554.4,3554.2,3.77046]
[1754297348496,0.56264,3554.4,3554.2,3.2078]
[1754297349289,0.56264,3554.4,3553.8,3.2078]
[1754297349497,0.56272,3553.9,3553.8,3.2078]
[1754297349795,19.98572,3553.9,3553.8,3.2078]
[1754297350196,0.56277,3553.6,3553.4,3.77058]
[1754297350395,19.423,3553.5,3553.4,3.2078]
[1754297351501,0.56282,3553.3,3553.2,0.56281]
[1754297352006,0.56284,3553.2,3553.0,3.2078]
[1754297352189,19.424,3553.1,3552.6,3.77071]
[1754297352392,0.5629,3552.8,3552.7,0.56289]
[1754297352594,19.9869,3552.8,3552.7,0.56289]
[1754297352996,19.9869,3552.8,3552.6,3.2078]
[1754297353600,19.9869,3552.8,3552.6,3.77071]
[1754297354299,19.9869,3552.8,3552.6,3.2078]
[1754297354601,19.424,3552.8,3552.6,3.77071]
[1754297356500,0.56283,3553.2,3553.0,0.56286]
[1754297356703,19.426,3553.1,3553.0,0.56286]
[1754297358904,19.426,3553.1,3552.9,0.56287]
[1754297359302,0.56282,3553.3,3553.1,0.56283]
[1754297359602,19.426,3553.2,3553.1,0.56282]
[1754297361195,19.427,3553.2,3552.9,1.40718]
[1754297361397,19.427,3553.2,3553.0,0.56286]
[1754297361800,0.56286,3553.0,3552.8,0.56288]
[1754297361991,0.56289,3552.8,3552.6,3.2078]
[1754297362195,19.426,3552.7,3552.6,3.77072]
[1754297363195,19.426,3552.7,3552.6,3.2078]
[1754297365105,3.2078,3553.4,3553.1,0.56282]
[1754297365402,19.426,3553.3,3553.1,0.56283]
[1754297365600,3.7706,3553.4,3553.3,0.56281]
[1754297365898,3.7706,3553.4,3552.9,1.40719]
[1754297365899,19.425,3553.4,3553.1,1.40711]
[1754297366099,0.56277,3553.6,3553.5,0.56275]
[1754297366291,19.98877,3553.6,3553.5,0.56275]
[1754297367203,0.56274,3553.8,3553.7,0.56273]
[1754297367402,0.56272,3553.9,3553.8,0.56271]
[1754297367700,0.56277,3553.6,3553.1,1.40708]
[1754297367899,0.5628,3553.4,3553.3,0.56279]
[1754297368797,19.98779,3553.5,3553.3,0.56279]
[1754297370213,0.56284,3553.2,3553.0,3.2078]
[1754297370498,19.98784,3553.1,3552.9,0.56286]
[1754297370805,19.424,3553.0,3552.9,0.56286]
[1754297371104,19.98687,3553.0,3552.8,0.56288]
[1754297372403,0.56288,3552.9,3552.8,0.56287]
[1754297372600,19.424,3553.0,3552.6,3.2078]
[1754297372805,0.5629,3552.8,3552.6,3.77071]
[1754297373707,19.423,3553.0,3552.9,0.56287]
[1754297375307,19.423,3553.0,3552.8,0.56287]
[1754297376910,0.5629,3552.7,3552.6,3.7707]
[1754297377311,0.5629,3552.7,3552.6,3.2078]
[1754297379101,0.56297,3552.3,3552.2,3.77077]
[1754297379409,0.56297,3552.3,3552.2,3.2078]
[1754297380204,19.98496,3552.4,3552.3,0.56297]
[1754297380711,19.422,3552.4,3552.3,0.56297]
[1754297381914,0.56292,3552.7,3552.6,0.56291]
[1754297382115,19.423,3552.7,3552.2,3.2078]
[1754297382317,19.423,3552.7,3552.5,0.56293]
[1754297382916,19.98591,3552.7,3552.5,0.56293]
[1754297383115,19.423,3552.7,3552.5,0.56293]
[1754297383422,0.56288,3552.9,3552.8,0.56289]
[1754297383727,0.56293,3552.6,3552.5,0.56292]
[1754297384016,0.56291,3552.7,3552.6,0.5629]
[1754297384208,19.98591,3552.7,3552.6,0.5629]
[1754297384410,0.56288,3552.9,3552.8,0.56287]
[1754297384611,19.98588,3552.9,3552.8,0.56287]
[1754297384916,20.74903132,3552.9,3552.8,0.56287]
[1754297385111,1.32603132,3552.9,3552.8,0.56287]
[1754297385310,19.423,3552.9,3552.8,0.56287]
[1754297385514,20.18615132,3552.9,3552.8,0.56287]
[1754297385914,0.76315132,3552.9,3552.8,0.56287]
[1754297386116,19.423,3552.9,3552.8,0.56287]
[1754297387815,0.56293,3552.6,3552.5,0.56291]
[1754297388016,19.423,3552.9,3552.3,1.40742]
[1754297388217,0.56289,3552.9,3552.8,0.56288]
[1754297388517,0.5629,3552.8,3552.7,0.56289]
[1754297389420,19.422,3552.9,3552.7,0.56289]
[1754297389616,0.56288,3552.9,3552.8,0.56288]
[1754297389812,19.98488,3552.9,3552.8,0.56288]
[1754297390212,19.422,3552.9,3552.8,0.56288]
[1754297390518,3.77065,3553.1,3553.0,0.56286]
[1754297390715,24.10767512,3553.1,3553.0,0.56286]
[1754297391113,4.12282512,3553.1,3553.0,0.56286]
[1754297391315,23.54482512,3553.1,3553.0,0.56286]
[1754297391714,23.39287152,3553.1,3553.0,0.56286]
[1754297392519,0.56292,3552.7,3552.6,0.5629]
[1754297392721,19.422,3552.7,3552.6,0.5629]
[1754297397719,19.422,3552.7,3552.2,3.2078]
[1754297398225,19.422,3552.7,3552.5,0.56292]
[1754297398226,0.56293,3552.6,3552.5,0.56292]
[1754297399023,0.56297,3552.4,3552.3,0.56296]
[1754297399227,19.98297,3552.4,3552.3,0.56296]
[1754297400422,19.42,3552.4,3552.3,0.56296]
[1754297400923,0.56297,3552.3,3552.2,3.77077]
[1754297401126,0.56297,3552.3,3552.2,3.2078]
[1754297401323,0.56302,3552.0,3551.9,0.56302]
[1754297401521,19.419,3552.0,3551.9,0.56302]
[1754297403724,19.419,3552.0,3551.8,3.2078]
[1754297403725,0.56303,3551.9,3551.8,3.2078]
[1754297404724,19.98202,3552.0,3551.8,3.77084]
[1754297405828,3.2078,3552.7,3552.5,0.56292]
[1754297406128,3.2078,3553.1,3553.0,0.56286]
[1754297406321,23.3909698,3553.1,3553.0,0.56286]
[1754297406722,40.528,3553.5,3552.9,1.40719]
[1754297406918,20.33505599,3553.4,3553.3,0.5628]
[1754297407127,20.18338108,3553.4,3553.3,0.5628]
[1754297409630,19.418,3553.4,3553.3,0.5628]
[1754297411528,19.417,3553.4,3553.3,0.5628]
[1754297411734,40.528,3554.5,3554.4,0.56263]
[1754297411936,0.56263,3554.4,3554.3,0.56264]
[1754297412137,0.76447318,3554.4,3554.3,0.56264]
[1754297412328,60.50763,3554.5,3554.3,0.56264]
[1754297412531,0.56268,3554.1,3553.9,0.5627]
[1754297412728,0.56271,3553.9,3553.7,0.56274]
[1754297412929,0.56274,3553.8,3553.6,0.56276]
[1754297413133,19.417,3553.7,3553.6,0.56276]
[1754297416239,3.2078,3554.3,3554.0,0.5627]
[1754297416444,19.415,3554.2,3554.1,0.56267]
[1754297418047,0.56264,3554.4,3554.3,0.56264]
[1754297418246,19.97764,3554.4,3554.3,0.56264]
[1754297418947,19.97764,3554.4,3554.2,0.56266]
[1754297419149,19.414,3554.3,3554.2,0.56266]
[1754297419750,19.414,3554.3,3553.9,3.2078]
[1754297420148,0.56269,3554.1,3553.9,3.77051]
[1754297420452,19.413,3554.0,3553.9,3.77051]
[1754297422752,19.413,3554.0,3553.9,3.2078]
[1754297424249,0.56276,3553.6,3553.4,0.56278]
[1754297424449,19.412,3553.5,3553.4,0.56278]
[1754297427049,19.412,3553.5,3553.1,3.2078]
[1754297428146,0.56282,3553.3,3553.2,0.56282]
[1754297428345,0.56282,3553.3,3553.1,3.2078]
[1754297428856,19.411,3553.2,3553.1,3.2078]
[1754297429945,19.411,3553.2,3553.1,3.77063]
[1754297431642,0.5628,3553.4,3553.1,3.2078]
[1754297431849,19.411,3553.3,3553.2,0.56282]
[1754297432049,0.56279,3553.5,3553.4,0.56279]
[1754297432249,19.97379,3553.5,3553.4,0.56279]
[1754297433856,19.97379,3553.5,3553.3,0.5628]
[1754297434956,0.56283,3553.3,3553.2,0.56282]
[1754297435946,19.411,3553.5,3553.2,0.56282]
[1754297436152,0.5628,3553.4,3553.3,0.56279]
[1754297436448,0.56279,3553.4,3553.1,3.2078]
[1754297436856,0.56282,3553.3,3553.2,0.56281]
[1754297437059,19.411,3553.5,3553.3,0.56279]
[1754297437060,0.5628,3553.4,3553.3,0.56279]
[1754297437361,0.56282,3553.3,3553.2,0.56281]
[1754297439259,0.56282,3553.3,3553.1,3.2078]
[1754297439260,0.56282,3553.3,3553.1,3.77063]
[1754297439451,0.56282,3553.3,3553.1,3.2078]
[1754297439648,0.56289,3552.8,3552.6,3.2078]
[1754297439854,19.411,3552.7,3552.6,3.2078]
[1754297440460,19.411,3552.7,3552.6,3.77072]
[1754297442662,19.411,3552.7,3552.6,3.2078]
[1754297444463,0.56297,3552.3,3552.2,3.2078]
[1754297444664,19.411,3552.3,3551.5,3.2078]
[1754297444959,0.56306,3551.8,3551.6,0.56308]
[1754297445265,19.97406,3551.8,3551.6,0.56308]
[1754297445462,19.411,3551.8,3551.6,0.56308]
[1754297445860,19.97405,3551.8,3551.6,0.56308]
[1754297446065,19.411,3551.8,3551.6,0.56308]
[1754297446772,19.97406,3551.8,3551.6,0.56308]
[1754297447464,0.56306,3551.7,3551.5,3.2078]
[1754297447768,0.7824358,3551.7,3551.5,3.2078]
[1754297449266,0.56306,3551.7,3551.5,3.2078]
[1754297450468,0.56306,3551.8,3551.7,0.56305]
[1754297450766,19.97706,3551.8,3551.7,0.56305]
[1754297451267,19.414,3551.8,3551.7,0.56305]
[1754297451467,3.2078,3552.0,3551.9,0.56303]
[1754297451768,3.2078,3552.0,3551.8,0.56304]
[1754297451769,23.18483,3552.0,3551.8,0.56304]
[1754297452473,22.6218,3552.0,3551.8,0.56304]
[1754297452764,3.2078,3552.0,3551.8,0.56304]
[1754297452969,19.414,3551.9,3551.8,0.56304]
[1754297453373,19.414,3551.9,3551.7,1.40763]
[1754297453670,19.414,3551.8,3551.5,4.61554]
[1754297453872,0.56299,3552.2,3552.0,0.563]
[1754297454170,19.414,3552.1,3552.0,0.563]
[1754297454769,0.56302,3552.0,3551.5,4.61554]
[1754297454968,19.414,3552.1,3551.5,4.61554]
[1754297455169,0.56308,3551.6,3551.5,3.77088]
[1754297455474,19.414,3551.6,3551.5,3.2078]
[1754297455973,19.414,3551.6,3551.5,3.77089]
[1754297457075,19.414,3551.6,3551.5,3.2078]
[1754297457263,0.56316,3551.2,3551.0,3.2078]
[1754297457468,19.97616,3551.2,3551.0,3.2078]
[1754297457663,19.97616,3551.2,3551.0,3.77096]
[1754297457975,19.97616,3551.2,3551.0,3.77097]
[1754297458273,19.413,3551.2,3551.0,3.77097]
[1754297459671,19.97615,3551.2,3551.0,3.77097]
[1754297459876,19.413,3551.2,3551.0,3.77097]
[1754297460778,19.97615,3551.2,3551.0,3.2078]
[1754297461680,0.56321,3550.8,3550.6,3.2078]
[1754297461970,0.56328,3550.4,3550.3,0.56327]
[1754297462172,0.56328,3550.4,3550.2,3.2078]
[1754297462173,19.97828,3550.4,3550.2,3.2078]
[1754297462471,19.415,3550.4,3550.2,3.77109]
[1754297462671,19.97828,3550.4,3550.2,3.2078]
[1754297463864,19.97828,3550.4,3550.2,3.77109]
[1754297464069,19.97828,3550.4,3550.2,3.2078]
[1754297464272,0.22279631,3550.7,3550.2,3.77109]
[1754297464483,3.2078,3551.0,3550.3,0.56328]
[1754297464779,0.56328,3550.4,3550.2,3.2078]
[1754297464978,19.414,3550.3,3550.2,3.2078]
[1754297465879,0.56333,3550.0,3549.9,1.01409879]
[1754297466777,0.56332,3550.1,3549.9,1.01409879]
[1754297469180,19.419,3550.0,3549.9,1.01409879]
[1754297470082,22.6268,3550.0,3549.9,1.01409879]
[1754297470379,23.38694401,3550.0,3549.9,1.01409879]
[1754297475187,23.38894401,3550.0,3549.9,1.01409879]
[1754297475884,22.6288,3550.0,3549.9,1.01409879]
[1754297476182,3.2078,3550.0,3549.9,1.01409879]
[1754297476385,3.2078,3550.4,3550.3,0.56329]
[1754297476687,22.6278,3550.4,3550.3,0.56329]
[1754297477186,0.56329,3550.3,3550.1,0.56331]
[1754297477389,0.56333,3550.0,3549.9,1.57743879]
[1754297477596,0.56333,3550.0,3549.9,1.01409879]
[1754297478089,19.42,3550.2,3549.9,1.01409879]
[1754297478090,0.56333,3550.1,3549.9,1.01409879]
[1754297478686,0.56333,3550.1,3549.9,1.57743879]
[1754297478989,19.42,3550.2,3550.0,0.56332]
[1754297479186,3.2078,3550.4,3550.1,0.56332]
[1754297479389,20.18110507,3550.3,3550.0,0.56333]
[1754297479588,0.56332,3550.1,3549.9,1.01409879]
[1754297479789,19.42,3550.0,3549.9,1.01409879]
[1754297483091,20.18153153,3550.0,3549.9,1.01409879]
[1754297483489,23.38933153,3550.0,3549.9,1.01409879]
[1754297485994,3.96933153,3550.0,3549.9,1.01409879]
[1754297486196,23.38833153,3550.0,3549.9,1.01409879]
[1754297487796,24.39856961,3550.0,3549.9,1.01409879]
[1754297487989,23.38833153,3550.0,3549.9,1.01409879]
[1754297488193,24.39856961,3550.0,3549.9,1.01409879]
[1754297488493,23.38833153,3550.0,3549.9,1.01409879]
[1754297490095,24.39856961,3550.0,3549.9,1.01409879]
[1754297491196,3.96933153,3550.0,3549.9,1.01409879]
[1754297491391,21.18976961,3550.0,3549.9,1.01409879]
[1754297492291,0.76153153,3550.0,3549.9,1.01409879]
[1754297492598,20.17953153,3550.0,3549.9,1.01409879]
[1754297493300,0.76153153,3550.0,3549.9,1.01409879]
[1754297493799,20.17953153,3550.0,3549.9,1.01409879]
[1754297495697,23.38733153,3550.0,3549.9,1.01409879]
[1754297495889,23.5378575,3550.0,3549.9,1.01409879]
[1754297497100,23.5368575,3550.0,3549.9,1.01409879]
[1754297501396,24.54709558,3550.0,3549.9,1.01409879]
[1754297503300,24.54719498,3550.0,3549.9,1.01409879]
[1754297503502,23.5369569,3550.0,3549.9,1.01409879]
[1754297506612,4.1199569,3550.0,3549.9,1.01409879]
[1754297506904,23.5359569,3550.0,3549.9,1.01409879]
[1754297507107,40.548,3550.5,3549.9,1.01409879]
[1754297507306,19.416,3550.4,3550.3,0.56329]
[1754297507519,3.2078,3550.8,3550.6,0.56323]
[1754297507717,0.56324,3550.6,3550.2,0.5633]
[1754297507904,19.416,3550.5,3550.0,4.61612]
[1754297508105,19.416,3550.4,3550.0,4.61612]
[1754297508507,19.416,3550.4,3550.3,0.56329]
[1754297511513,19.416,3550.4,3550.0,3.2078]
[1754297511711,0.56329,3550.3,3550.1,0.56331]
[1754297512912,19.416,3550.4,3550.2,0.56329]
[1754297513711,19.97928,3550.4,3550.2,0.56329]
[1754297513906,19.97928,3550.4,3550.1,0.5633]
[1754297514117,19.97928,3550.4,3550.2,0.56329]
[1754297514914,19.416,3550.4,3550.2,0.56329]
[1754297515905,0.56325,3550.6,3550.5,0.56325]
[1754297516316,3.2078,3550.8,3550.7,0.56322]
[1754297516512,3.9623102,3550.8,3550.7,0.56322]
[1754297516719,0.56315,3551.2,3551.1,0.56315]
[1754297517111,0.71350359,3551.4,3551.2,0.56313]
[1754297517513,0.75460968,3551.6,3551.4,0.56311]
[1754297517817,2.16217968,3552.0,3551.3,3.2078]
[1754297518007,0.1503403,3551.9,3551.4,0.5631]
[1754297518414,0.56307,3551.7,3551.5,0.56309]
[1754297518925,0.56309,3551.6,3551.3,3.77092]
[1754297520017,0.56311,3551.5,3551.3,3.2078]
[1754297521123,1.40756,3552.0,3551.3,3.2078]
[1754297521323,0.56307,3551.7,3551.4,0.5631]
[1754297521715,0.56307,3551.7,3551.3,3.2078]
[1754297521716,0.56302,3552.0,3551.7,0.56306]
[1754297521916,0.56303,3552.0,3551.7,0.56305]
[1754297522220,0.56292,3552.7,3552.5,0.56293]
[1754297522419,4.21803808,3552.9,3551.6,1.4077]
[1754297522420,0.90187429,3552.8,3552.6,0.56291]
[1754297522617,0.15000458,3552.7,3552.6,0.56291]
[1754297523017,0.15000458,3553.4,3553.3,0.56281]
[1754297523317,0.15000458,3553.5,3553.3,0.56281]
[1754297523525,0.15000458,3553.6,3553.5,0.56278]
[1754297523817,0.15000458,3553.9,3553.8,0.56273]
[1754297524024,1.16024266,3553.9,3553.2,3.2078]
[1754297524222,3.2078,3553.7,3553.2,3.2078]
[1754297524413,0.75095583,3553.6,3553.4,0.56278]
[1754297525019,1.00453087,3554.0,3553.2,3.2078]
[1754297525418,0.5627,3554.0,3553.2,3.2078]
[1754297525721,1.7554867,3554.1,3553.2,3.2078]
[1754297525722,0.56275,3553.7,3553.2,3.2078]
[1754297526024,0.56275,3553.7,3553.3,0.56281]
[1754297526222,0.56278,3553.6,3553.2,3.77063]
[1754297526723,0.75095583,3554.0,3552.4,1.40736]
[1754297526724,0.56282,3553.3,3552.9,0.56287]
[1754297526918,3.2078,3553.4,3552.7,0.56289]
[1754297527218,0.56284,3553.2,3552.8,0.56288]
[1754297527422,0.56281,3553.4,3552.8,3.2078]
[1754297527722,0.56287,3553.0,3552.4,3.2078]
[1754297528021,0.56287,3553.0,3552.5,0.56294]
[1754297528222,0.56289,3552.9,3552.5,0.56294]
[1754297528418,1.40715,3553.0,3552.4,3.2078]
[1754297528616,3.2078,3553.1,3552.4,3.77074]
[1754297528816,3.2078,3553.1,3552.4,3.2078]
[1754297529020,0.56291,3552.7,3552.4,3.2078]
[1754297530823,0.5629,3552.8,3552.4,3.77075]
[1754297531018,0.56292,3552.6,3552.4,3.2078]
[1754297531825,0.56299,3552.2,3552.0,3.2078]
[1754297532126,0.56296,3552.4,3552.0,3.77081]
[1754297532621,3.2078,3552.7,3552.0,3.77081]
[1754297532622,0.56298,3552.3,3552.0,3.77081]
[1754297532820,0.563,3552.2,3552.0,3.2078]
[1754297533524,0.56298,3552.3,3552.0,3.7708]
[1754297533822,0.56298,3552.3,3552.0,3.77081]
[1754297534728,0.56295,3552.5,3552.3,0.56296]
[1754297535017,0.56295,3552.5,3552.0,3.2078]
[1754297535018,0.56293,3552.6,3552.4,0.56294]
[1754297535218,0.56295,3552.5,3552.3,0.56296]
[1754297535424,0.56293,3552.6,3552.3,0.56296]
[1754297536019,3.2078,3552.7,3552.0,3.2078]
[1754297536225,0.56296,3552.4,3552.2,0.56298]
[1754297536724,3.2078,3552.7,3552.0,3.2078]
[1754297536926,0.56292,3552.6,3552.3,0.56296]
[1754297537226,0.56292,3552.6,3552.4,0.56295]
[1754297537428,3.2078,3552.7,3552.5,0.56293]
[1754297538028,3.77071,3552.7,3552.5,0.56293]
[1754297538330,3.2078,3552.7,3552.5,0.56293]
[1754297539418,3.2078,3552.7,3552.4,0.56295]
[1754297540431,3.2078,3552.7,3552.5,0.56293]
[1754297543932,3.77071,3552.7,3552.5,0.56293]
[1754297545741,3.2078,3552.7,3552.0,3.2078]
[1754297545942,0.56299,3552.2,3552.0,3.77081]
[1754297546343,0.56299,3552.2,3552.0,3.2078]
[1754297546940,0.56299,3552.2,3552.0,3.77081]
[1754297547945,0.56298,3552.3,3552.2,0.56297]
[1754297548240,0.56296,3552.4,3552.3,0.56296]
[1754297548541,0.56295,3552.5,3552.4,0.56294]
[1754297548944,1.31619588,3552.6,3552.4,0.56294]
[1754297549143,20.71019588,3552.6,3552.4,0.56294]
[1754297549346,0.75247773,3552.5,3552.4,0.56294]
[1754297549640,0.75276767,3552.5,3552.4,0.56294]
[1754297549944,1.31571767,3552.5,3552.3,0.56296]
[1754297550242,0.75276767,3552.5,3552.3,0.56296]
[1754297550445,23.16472,3552.7,3552.5,0.56294]
[1754297550446,0.75276767,3552.6,3552.5,0.56294]
[1754297554043,19.394,3552.7,3552.5,0.56294]
[1754297554245,3.2078,3553.1,3553.0,0.56286]
[1754297554548,0.56286,3553.0,3552.9,0.56286]
[1754297554747,1.31644158,3553.0,3552.9,0.56286]
[1754297555246,0.75358158,3553.0,3552.9,0.56286]
[1754297556346,19.394,3553.1,3552.9,0.56286]
[1754297557348,19.393,3553.1,3553.0,0.56284]
[1754297557549,20.13844935,3553.1,3553.0,0.56284]
[1754297557943,0.74544935,3553.1,3553.0,0.56284]
[1754297558145,19.392,3553.9,3553.0,1.40715]
[1754297558347,19.392,3553.9,3553.8,0.56273]
[1754297558539,0.15007254,3553.9,3553.8,3.77053]
[1754297558739,19.392,3554.4,3554.3,0.56265]
[1754297558948,20.28752054,3554.4,3554.3,0.56265]
[1754297559152,19.54207254,3554.4,3554.3,0.56265]
[1754297559846,20.10472254,3554.4,3554.2,3.77046]
[1754297560047,0.15007254,3554.3,3554.2,3.2078]
[1754297560244,0.14985539,3554.3,3554.2,3.2078]
[1754297560750,19.95465,3554.4,3554.2,3.2078]
[1754297562449,19.95465,3554.4,3553.4,1.40699]
[1754297562450,0.5627,3554.0,3553.8,0.56272]
[1754297562653,0.5627,3554.0,3553.5,3.2078]
[1754297562654,0.56268,3554.1,3553.9,0.5627]
[1754297564159,1.40663,3554.3,3553.6,0.56276]
[1754297564656,0.56266,3554.3,3554.1,0.56268]
[1754297565153,0.56266,3554.3,3554.0,0.56269]
[1754297565359,19.392,3554.4,3554.0,0.56269]
[1754297565360,0.56267,3554.2,3554.0,0.56269]
[1754297565546,19.392,3554.4,3553.9,0.56271]
[1754297565862,0.56268,3554.2,3554.0,0.56269]
[1754297566156,19.392,3554.4,3553.6,1.40689]
[1754297566356,19.392,3554.4,3553.5,3.2078]
[1754297566656,0.56266,3554.3,3554.2,0.56266]
[1754297567156,19.392,3554.4,3554.2,0.56266]
[1754297568048,19.95464,3554.4,3554.2,0.56266]
[1754297568447,0.56268,3554.2,3554.1,0.56268]
[1754297568850,0.56268,3554.2,3554.0,0.56269]
[1754297569052,19.392,3554.4,3554.1,0.56268]
[1754297569257,19.392,3554.4,3554.2,0.56266]
[1754297569457,19.392,3554.4,3554.1,0.56267]
[1754297569660,19.95464,3554.4,3554.1,0.56267]
[1754297571458,19.95464,3554.4,3554.2,0.56266]
[1754297572052,19.392,3554.4,3554.2,0.56266]
[1754297573354,0.56266,3554.3,3554.1,0.56267]
[1754297574257,19.95465,3554.4,3554.3,0.56265]
[1754297574457,19.392,3554.4,3554.3,0.56265]
[1754297574657,19.95465,3554.4,3554.2,0.56266]
[1754297575455,19.392,3554.4,3553.9,3.2078]
[1754297575667,0.56269,3554.1,3553.9,3.2078]
[1754297575960,19.383,3554.0,3553.9,3.2078]
[1754297576665,19.383,3554.0,3553.9,3.77051]
[1754297577865,19.383,3554.0,3553.9,3.2078]
[1754297580156,0.56271,3553.9,3553.4,3.2078]
[1754297580461,0.56278,3553.6,3553.4,3.2078]
[1754297580766,19.94478,3553.6,3553.4,3.2078]
[1754297581662,19.382,3553.6,3553.4,3.77058]
[1754297582664,0.56274,3553.8,3553.6,0.56275]
[1754297582859,19.383,3553.7,3553.6,0.56275]
[1754297583869,0.56276,3553.6,3553.5,0.56277]
[1754297584165,19.94576,3553.7,3553.5,0.56277]
[1754297584567,19.94576,3553.7,3553.4,3.2078]
[1754297584568,0.56278,3553.5,3553.4,3.2078]
[1754297585165,19.383,3553.7,3553.5,0.56278]
[1754297585466,0.56275,3553.7,3553.6,0.56275]
[1754297585667,19.94475,3553.7,3553.6,0.56275]
[1754297585865,0.56278,3553.6,3553.5,0.56277]
[1754297586261,19.94475,3553.7,3553.5,0.56277]
[1754297586461,0.56274,3553.8,3553.7,0.56275]